[Event "Late-Titled-Tuesday-Blitz-April-02-2024"]
[Site "Chess.com"]
[Date "2024.04.02"]
[Round "2"]
[White "Nathan_Filgueiras"]
[Black "Kiborg95"]
[Result "0-1"]
[WhiteElo "2564"]
[BlackElo "2850"]
[TimeControl "180+1"]
[EndTime "14:16:56 PDT"]
[Termination "Kiborg95 won by resignation"]

1. e4 {[%clk 0:03:00.9]} 1... d6 {[%clk 0:02:56.1]} 2. d4 {[%clk 0:03:00.6]}
2... Nf6 {[%clk 0:02:56]} 3. Nc3 {[%clk 0:03:01.1]} 3... e5 {[%clk 0:02:55.7]}
4. Nf3 {[%clk 0:02:50.8]} 4... Nbd7 {[%clk 0:02:55.5]} 5. Bc4 {[%clk 0:02:38.2]}
5... Be7 {[%clk 0:02:54.9]} 6. O-O {[%clk 0:02:37.5]} 6... O-O {[%clk
0:02:55.5]} 7. Bb3 {[%clk 0:02:38]} 7... c6 {[%clk 0:02:52.4]} 8. Re1 {[%clk
0:02:37.4]} 8... b5 {[%clk 0:02:52.2]} 9. d5 {[%clk 0:02:20.4]} 9... Bb7 {[%clk
0:02:52.5]} 10. dxc6 {[%clk 0:02:20.3]} 10... Bxc6 {[%clk 0:02:53.4]} 11. Bg5
{[%clk 0:02:18.7]} 11... a5 {[%clk 0:02:44]} 12. Bxf6 {[%clk 0:02:17.1]} 12...
Nxf6 {[%clk 0:02:44.9]} 13. Nd5 {[%clk 0:02:14.7]} 13... Rc8 {[%clk 0:02:43.1]}
14. c3 {[%clk 0:02:10]} 14... Nd7 {[%clk 0:02:43]} 15. Qd3 {[%clk 0:01:59]}
15... Nc5 {[%clk 0:02:40.4]} 16. Qd2 {[%clk 0:01:53.9]} 16... a4 {[%clk
0:02:12.6]} 17. Bc2 {[%clk 0:01:53.7]} 17... Re8 {[%clk 0:01:58.6]} 18. Rad1
{[%clk 0:01:53.2]} 18... Bf8 {[%clk 0:01:59.2]} 19. Qe3 {[%clk 0:01:45.8]} 19...
Rb8 {[%clk 0:01:51.1]} 20. Nb4 {[%clk 0:01:40.2]} 20... Bb7 {[%clk 0:01:48.4]}
21. Rd2 {[%clk 0:01:26.3]} 21... h6 {[%clk 0:01:46]} 22. Red1 {[%clk 0:01:26.4]}
22... Qa5 {[%clk 0:01:46.6]} 23. a3 {[%clk 0:01:14.4]} 23... Qa8 {[%clk
0:01:46.7]} 24. Nd5 {[%clk 0:01:11.7]} 24... Qa5 {[%clk 0:01:44.6]} 25. h4
{[%clk 0:00:58.1]} 25... Bc8 {[%clk 0:01:39.4]} 26. Nb4 {[%clk 0:00:43.9]} 26...
Qc7 {[%clk 0:01:32]} 27. Nd5 {[%clk 0:00:43.5]} 27... Qd8 {[%clk 0:01:32.4]} 28.
g3 {[%clk 0:00:30.2]} 28... Bg4 {[%clk 0:01:30.6]} 29. Re1 {[%clk 0:00:30.6]}
29... Nd7 {[%clk 0:01:21.3]} 30. Nh2 {[%clk 0:00:29.9]} 30... Be6 {[%clk
0:01:21.7]} 31. Nb4 {[%clk 0:00:22.2]} 31... Qc8 {[%clk 0:01:17.6]} 32. Qf3
{[%clk 0:00:20.8]} 32... Nf6 {[%clk 0:01:14.5]} 33. Red1 {[%clk 0:00:20.8]}
33... Qc5 {[%clk 0:01:10]} 34. Nd5 {[%clk 0:00:19.2]} 34... Bxd5 {[%clk
0:01:03.1]} 35. exd5 {[%clk 0:00:19.3]} 35... e4 {[%clk 0:01:03.1]} 36. Qf4
{[%clk 0:00:18.8]} 36... Re5 {[%clk 0:01:00.5]} 37. Ng4 {[%clk 0:00:18.7]} 37...
Nxd5 {[%clk 0:00:47.2]} 38. Rxd5 {[%clk 0:00:14]} 38... Rxd5 {[%clk 0:00:47.2]}
39. Re1 {[%clk 0:00:10.7]} 39... f5 {[%clk 0:00:43.9]} 40. Ne3 {[%clk
0:00:10.6]} 40... Re5 {[%clk 0:00:43.9]} 41. Bb1 {[%clk 0:00:09.5]} 41... g6
{[%clk 0:00:34.6]} 42. h5 {[%clk 0:00:08.5]} 42... g5 {[%clk 0:00:34.7]} 43.
Ba2+ {[%clk 0:00:08.1]} 43... Kh8 {[%clk 0:00:35]} 0-1

[Event "Late-Titled-Tuesday-Blitz-April-02-2024"]
[Site "Chess.com"]
[Date "2024.04.02"]
[Round "2"]
[White "laskakid"]
[Black "colegiodemadrid"]
[Result "1-0"]
[WhiteElo "2303"]
[BlackElo "2514"]
[TimeControl "180+1"]
[EndTime "14:16:56 PDT"]
[Termination "laskakid won by resignation"]

1. e4 {[%clk 0:03:00.9]} 1... e5 {[%clk 0:02:37.5]} 2. Nf3 {[%clk 0:03:00.5]}
2... Nf6 {[%clk 0:02:37.5]} 3. d3 {[%clk 0:03:00.5]} 3... Nc6 {[%clk 0:02:36.9]}
4. g3 {[%clk 0:03:00.5]} 4... d5 {[%clk 0:02:36.7]} 5. exd5 {[%clk 0:02:59.1]}
5... Nxd5 {[%clk 0:02:37.6]} 6. Bg2 {[%clk 0:02:59.1]} 6... Bc5 {[%clk
0:02:37.9]} 7. O-O {[%clk 0:02:58.9]} 7... O-O {[%clk 0:02:36]} 8. Nc3 {[%clk
0:02:58.6]} 8... Nxc3 {[%clk 0:02:34.8]} 9. bxc3 {[%clk 0:02:58.9]} 9... Bb6
{[%clk 0:02:35.1]} 10. Re1 {[%clk 0:02:50.9]} 10... Re8 {[%clk 0:02:35.1]} 11.
Rb1 {[%clk 0:02:48.9]} 11... Be6 {[%clk 0:02:34]} 12. c4 {[%clk 0:02:47.4]}
12... Bg4 {[%clk 0:02:33.1]} 13. h3 {[%clk 0:02:47]} 13... Bh5 {[%clk
0:02:32.3]} 14. Be3 {[%clk 0:02:40.8]} 14... Ba5 {[%clk 0:02:16.5]} 15. Bd2
{[%clk 0:02:32.3]} 15... Bb6 {[%clk 0:02:15]} 16. Bc3 {[%clk 0:02:21.8]} 16...
f6 {[%clk 0:02:09.2]} 17. g4 {[%clk 0:02:16.9]} 17... Bg6 {[%clk 0:02:04.2]} 18.
Nh4 {[%clk 0:02:06.1]} 18... Qd7 {[%clk 0:02:02.5]} 19. Nxg6 {[%clk 0:02:00.1]}
19... hxg6 {[%clk 0:02:03.4]} 20. Bd5+ {[%clk 0:01:47.3]} 20... Kf8 {[%clk
0:01:59.5]} 21. Qf3 {[%clk 0:01:45.7]} 21... Qd6 {[%clk 0:01:30.3]} 22. h4
{[%clk 0:01:24.6]} 22... Nd4 {[%clk 0:01:16.8]} 23. Bxd4 {[%clk 0:01:16.2]}
23... exd4 {[%clk 0:01:13.2]} 24. Bxb7 {[%clk 0:01:09.4]} 24... Rxe1+ {[%clk
0:01:10.6]} 25. Rxe1 {[%clk 0:01:09]} 25... Re8 {[%clk 0:01:11.5]} 26. Be4
{[%clk 0:01:01.7]} 26... Qe5 {[%clk 0:00:58.7]} 27. Rb1 {[%clk 0:00:52.2]} 27...
g5 {[%clk 0:00:57.4]} 28. Rb5 {[%clk 0:00:49.1]} 28... c5 {[%clk 0:00:49.6]} 29.
h5 {[%clk 0:00:46.8]} 29... Bc7 {[%clk 0:00:46.7]} 30. Kf1 {[%clk 0:00:42.3]}
30... Bb6 {[%clk 0:00:41.1]} 31. a4 {[%clk 0:00:37.9]} 31... Qc7 {[%clk
0:00:40.5]} 32. Qf5 {[%clk 0:00:34.7]} 32... a6 {[%clk 0:00:30.6]} 33. Rb1
{[%clk 0:00:32.5]} 33... Ba5 {[%clk 0:00:19.4]} 34. Rb7 {[%clk 0:00:29.8]} 34...
Qh2 {[%clk 0:00:15.3]} 35. Qd7 {[%clk 0:00:25.5]} 35... Qh3+ {[%clk 0:00:14]}
36. Ke2 {[%clk 0:00:23]} 36... Rxe4+ {[%clk 0:00:09.5]} 37. dxe4 {[%clk
0:00:21.5]} 37... d3+ {[%clk 0:00:07]} 38. cxd3 {[%clk 0:00:20.6]} 38... Qxg4+
{[%clk 0:00:07.3]} 39. Qxg4 {[%clk 0:00:19.9]} 1-0

[Event "Late-Titled-Tuesday-Blitz-April-02-2024"]
[Site "Chess.com"]
[Date "2024.04.02"]
[Round "2"]
[White "PetrolulSah"]
[Black "Carlitus2004"]
[Result "1/2-1/2"]
[WhiteElo "2228"]
[BlackElo "2468"]
[TimeControl "180+1"]
[EndTime "14:16:56 PDT"]
[Termination "Game drawn - insufficient material"]

1. d4 {[%clk 0:03:00.9]} 1... d5 {[%clk 0:02:49.4]} 2. c4 {[%clk 0:02:42.6]}
2... e6 {[%clk 0:02:49.3]} 3. Nf3 {[%clk 0:02:40.3]} 3... h6 {[%clk 0:02:46.4]}
4. g3 {[%clk 0:02:40.1]} 4... Nf6 {[%clk 0:02:46.1]} 5. Bg2 {[%clk 0:02:40.3]}
5... Nc6 {[%clk 0:02:45.9]} 6. O-O {[%clk 0:02:39.9]} 6... b6 {[%clk 0:02:45.4]}
7. Ne5 {[%clk 0:02:37.8]} 7... Bb7 {[%clk 0:02:44.7]} 8. Qa4 {[%clk 0:02:36.2]}
8... Qd6 {[%clk 0:02:42.9]} 9. Bf4 {[%clk 0:02:33.7]} 9... Qb4 {[%clk
0:02:38.7]} 10. Qxb4 {[%clk 0:01:55.5]} 10... Bxb4 {[%clk 0:02:39.6]} 11. Nxc6
{[%clk 0:01:47.1]} 11... Bxc6 {[%clk 0:02:40.5]} 12. Bxc7 {[%clk 0:01:46.8]}
12... Rc8 {[%clk 0:02:40.7]} 13. Be5 {[%clk 0:01:43.7]} 13... dxc4 {[%clk
0:02:40.7]} 14. Bxf6 {[%clk 0:01:35.2]} 14... gxf6 {[%clk 0:02:39.2]} 15. Rc1
{[%clk 0:01:32.8]} 15... Bxg2 {[%clk 0:02:23.3]} 16. Kxg2 {[%clk 0:01:32.1]}
16... Kd7 {[%clk 0:02:21.9]} 17. Nc3 {[%clk 0:01:28.4]} 17... Bxc3 {[%clk
0:02:21.9]} 18. bxc3 {[%clk 0:01:25.2]} 18... h5 {[%clk 0:02:20.2]} 19. h4
{[%clk 0:01:24.1]} 19... Kc6 {[%clk 0:02:03.2]} 20. a4 {[%clk 0:01:23.7]} 20...
Rhd8 {[%clk 0:02:03]} 21. Rcb1 {[%clk 0:01:23.5]} 21... Rd5 {[%clk 0:02:00.3]}
22. e4 {[%clk 0:01:22.1]} 22... Ra5 {[%clk 0:01:59.5]} 23. Rb4 {[%clk
0:01:20.5]} 23... Kb7 {[%clk 0:01:50.4]} 24. Rb5 {[%clk 0:00:59.3]} 24... Rxb5
{[%clk 0:01:34.5]} 25. axb5 {[%clk 0:00:58.5]} 25... Rc7 {[%clk 0:01:32.2]} 26.
Ra4 {[%clk 0:00:57.7]} 26... Kc8 {[%clk 0:01:32.5]} 27. f3 {[%clk 0:00:53.8]}
27... Kd7 {[%clk 0:01:32.7]} 28. g4 {[%clk 0:00:54.1]} 28... hxg4 {[%clk
0:01:28.8]} 29. fxg4 {[%clk 0:00:53.9]} 29... Ke7 {[%clk 0:01:29.5]} 30. h5
{[%clk 0:00:51.8]} 30... Kf8 {[%clk 0:01:29.8]} 31. Kf3 {[%clk 0:00:51.4]} 31...
Kg7 {[%clk 0:01:30.2]} 32. Kf4 {[%clk 0:00:51.3]} 32... Kh6 {[%clk 0:01:30.9]}
33. Ra1 {[%clk 0:00:35.8]} 33... Re7 {[%clk 0:01:25.6]} 34. e5 {[%clk
0:00:35.4]} 34... fxe5+ {[%clk 0:01:24.7]} 35. dxe5 {[%clk 0:00:25.1]} 35... Rd7
{[%clk 0:01:19.5]} 36. Ra4 {[%clk 0:00:24.3]} 36... Rd5 {[%clk 0:00:53.7]} 37.
Rxc4 {[%clk 0:00:23.7]} 37... Rxb5 {[%clk 0:00:54.3]} 38. Rc7 {[%clk 0:00:23.8]}
38... Rb1 {[%clk 0:00:54.2]} 39. Rxa7 {[%clk 0:00:21.9]} 39... Rf1+ {[%clk
0:00:54.1]} 40. Kg3 {[%clk 0:00:21.5]} 40... Kg5 {[%clk 0:00:54.2]} 41. Rb7
{[%clk 0:00:20]} 41... Rg1+ {[%clk 0:00:54.2]} 42. Kf2 {[%clk 0:00:19.2]} 42...
Rxg4 {[%clk 0:00:54.1]} 43. Rxf7 {[%clk 0:00:18.5]} 43... Kxh5 {[%clk
0:00:49.7]} 44. Rb7 {[%clk 0:00:18]} 44... Re4 {[%clk 0:00:46.8]} 45. Rxb6
{[%clk 0:00:17.6]} 45... Rxe5 {[%clk 0:00:47.5]} 46. Kf3 {[%clk 0:00:17.8]}
46... Kg5 {[%clk 0:00:46.6]} 47. c4 {[%clk 0:00:18.1]} 47... Kf5 {[%clk
0:00:42.2]} 48. Rb5 {[%clk 0:00:17.8]} 48... Rxb5 {[%clk 0:00:41.3]} 49. cxb5
{[%clk 0:00:17.3]} 49... Ke5 {[%clk 0:00:42.1]} 50. b6 {[%clk 0:00:17.6]} 50...
Kd6 {[%clk 0:00:42.7]} 51. Ke4 {[%clk 0:00:15.9]} 51... Kc6 {[%clk 0:00:43]} 52.
Ke5 {[%clk 0:00:16.1]} 52... Kxb6 {[%clk 0:00:43.1]} 53. Kxe6 {[%clk 0:00:16.3]}
1/2-1/2

[Event "Late-Titled-Tuesday-Blitz-April-02-2024"]
[Site "Chess.com"]
[Date "2024.04.02"]
[Round "2"]
[White "Hamisandwich"]
[Black "Valiyev_Shahin"]
[Result "1-0"]
[WhiteElo "2708"]
[BlackElo "2435"]
[TimeControl "180+1"]
[EndTime "14:16:59 PDT"]
[Termination "Hamisandwich won on time"]

1. e4 {[%clk 0:02:57]} 1... c5 {[%clk 0:03:00.2]} 2. Nc3 {[%clk 0:02:55.1]} 2...
d6 {[%clk 0:02:59.7]} 3. d4 {[%clk 0:02:55.1]} 3... cxd4 {[%clk 0:02:59.9]} 4.
Qxd4 {[%clk 0:02:56]} 4... Nc6 {[%clk 0:02:59.3]} 5. Qd1 {[%clk 0:02:56.3]} 5...
g6 {[%clk 0:02:57.5]} 6. b3 {[%clk 0:02:56]} 6... Bg7 {[%clk 0:02:57.6]} 7. Bb2
{[%clk 0:02:56.7]} 7... Nf6 {[%clk 0:02:57.1]} 8. f3 {[%clk 0:02:52.8]} 8... O-O
{[%clk 0:02:47.6]} 9. Qd2 {[%clk 0:02:40.5]} 9... a5 {[%clk 0:02:38.9]} 10. Bb5
{[%clk 0:02:36.1]} 10... Bd7 {[%clk 0:02:25.4]} 11. Nge2 {[%clk 0:02:34.9]}
11... Rc8 {[%clk 0:02:15.9]} 12. O-O-O {[%clk 0:02:29.9]} 12... Nb4 {[%clk
0:01:52.7]} 13. Bxd7 {[%clk 0:02:29.9]} 13... Nxd7 {[%clk 0:01:45.9]} 14. a3
{[%clk 0:02:27.5]} 14... Nc5 {[%clk 0:01:30.4]} 15. Kb1 {[%clk 0:02:23.4]} 15...
Nc6 {[%clk 0:01:23.5]} 16. h4 {[%clk 0:02:15.3]} 16... a4 {[%clk 0:01:07.2]} 17.
b4 {[%clk 0:02:11.1]} 17... Ne6 {[%clk 0:01:05.3]} 18. f4 {[%clk 0:01:37.5]}
18... Ned4 {[%clk 0:00:41.6]} 19. h5 {[%clk 0:01:25.9]} 19... Nxe2 {[%clk
0:00:26.8]} 20. Nxe2 {[%clk 0:01:26.8]} 20... Bxb2 {[%clk 0:00:26.4]} 21. Kxb2
{[%clk 0:01:27.7]} 21... Qb6 {[%clk 0:00:21]} 22. hxg6 {[%clk 0:01:14.3]} 22...
fxg6 {[%clk 0:00:19]} 23. Qd5+ {[%clk 0:01:14.3]} 23... Kg7 {[%clk 0:00:14]} 24.
Qg5 {[%clk 0:01:00]} 24... Rf7 {[%clk 0:00:08.8]} 25. Rxh7+ {[%clk 0:00:48.8]}
25... Kxh7 {[%clk 0:00:08.6]} 26. Rh1+ {[%clk 0:00:49.4]} 26... Kg8 {[%clk
0:00:06.8]} 27. Qxg6+ {[%clk 0:00:49.8]} 27... Rg7 {[%clk 0:00:06.5]} 28. Qe6+
{[%clk 0:00:50.5]} 28... Rf7 {[%clk 0:00:03.5]} 29. Qxc8+ {[%clk 0:00:50.6]}
29... Rf8 {[%clk 0:00:01.9]} 30. Qg4+ {[%clk 0:00:43.7]} 30... Kf7 {[%clk
0:00:02.3]} 31. Qh5+ {[%clk 0:00:43.9]} 31... Ke6 {[%clk 0:00:02.4]} 32. Qg4+
{[%clk 0:00:39.6]} 32... Kf7 {[%clk 0:00:02.8]} 33. Rh7+ {[%clk 0:00:33]} 33...
Ke8 {[%clk 0:00:03.4]} 34. Qc8+ {[%clk 0:00:27.5]} 34... Nd8 {[%clk 0:00:03.6]}
35. Qc3 {[%clk 0:00:21.4]} 1-0

[Event "Late-Titled-Tuesday-Blitz-April-02-2024"]
[Site "Chess.com"]
[Date "2024.04.02"]
[Round "2"]
[White "cthulhuuu"]
[Black "carloseduar100"]
[Result "0-1"]
[WhiteElo "2447"]
[BlackElo "2203"]
[TimeControl "180+1"]
[EndTime "14:17:00 PDT"]
[Termination "carloseduar100 won by resignation"]

1. e4 {[%clk 0:02:58.7]} 1... e6 {[%clk 0:02:59.4]} 2. d3 {[%clk 0:02:58.9]}
2... d5 {[%clk 0:02:59.3]} 3. Nd2 {[%clk 0:02:59.6]} 3... Nf6 {[%clk 0:02:59.6]}
4. Ngf3 {[%clk 0:02:59.5]} 4... c5 {[%clk 0:02:59.9]} 5. g3 {[%clk 0:02:59.6]}
5... Nc6 {[%clk 0:03:00.3]} 6. Bg2 {[%clk 0:02:59.6]} 6... Be7 {[%clk 0:03:00]}
7. O-O {[%clk 0:02:59.7]} 7... b5 {[%clk 0:03:00.6]} 8. Re1 {[%clk 0:02:58.2]}
8... a5 {[%clk 0:03:00.7]} 9. h4 {[%clk 0:02:57.8]} 9... Bb7 {[%clk 0:03:00.8]}
10. exd5 {[%clk 0:02:56.9]} 10... Nxd5 {[%clk 0:03:00.8]} 11. c4 {[%clk
0:02:57.3]} 11... bxc4 {[%clk 0:02:55.7]} 12. dxc4 {[%clk 0:02:37.4]} 12... Nb6
{[%clk 0:02:44.1]} 13. Qe2 {[%clk 0:02:20.7]} 13... O-O {[%clk 0:02:42.7]} 14.
Ne4 {[%clk 0:02:20.4]} 14... Nd4 {[%clk 0:02:40.6]} 15. Nxd4 {[%clk 0:02:20.4]}
15... cxd4 {[%clk 0:02:41.5]} 16. Qd3 {[%clk 0:02:11.9]} 16... e5 {[%clk
0:02:37.6]} 17. Ng5 {[%clk 0:02:10]} 17... Bxg5 {[%clk 0:02:37]} 18. Bxb7 {[%clk
0:02:08]} 18... Bxc1 {[%clk 0:02:37.2]} 19. Raxc1 {[%clk 0:01:52.7]} 19... Rb8
{[%clk 0:02:31.9]} 20. Be4 {[%clk 0:01:52.5]} 20... g6 {[%clk 0:02:16.3]} 21.
Bg2 {[%clk 0:00:22.3]} 21... Re8 {[%clk 0:02:08.1]} 22. h5 {[%clk 0:00:22]}
22... f5 {[%clk 0:02:02.2]} 23. hxg6 {[%clk 0:00:22]} 23... hxg6 {[%clk
0:02:03.1]} 24. b3 {[%clk 0:00:22.6]} 24... e4 {[%clk 0:02:02.3]} 25. Qd2 {[%clk
0:00:22.7]} 25... Kg7 {[%clk 0:01:52.1]} 26. c5 {[%clk 0:00:22.8]} 26... Na8
{[%clk 0:01:46.2]} 27. c6 {[%clk 0:00:22]} 27... Rc8 {[%clk 0:01:40]} 28. Red1
{[%clk 0:00:16.7]} 28... d3 {[%clk 0:01:36.7]} 29. Qc3+ {[%clk 0:00:17]} 29...
Kh7 {[%clk 0:01:29.8]} 30. f3 {[%clk 0:00:16.2]} 30... Qb6+ {[%clk 0:01:11.7]}
31. Qc5 {[%clk 0:00:15.8]} 31... Rxc6 {[%clk 0:00:57.1]} 32. Qxb6 {[%clk
0:00:14.3]} 32... Rxb6 {[%clk 0:00:58]} 33. fxe4 {[%clk 0:00:14.2]} 33... fxe4
{[%clk 0:00:53.3]} 34. Rc4 {[%clk 0:00:13.1]} 34... e3 {[%clk 0:00:45.4]} 35.
Re4 {[%clk 0:00:07.6]} 35... Rxe4 {[%clk 0:00:40.7]} 36. Bxe4 {[%clk 0:00:07.9]}
36... e2 {[%clk 0:00:41.2]} 37. Ra1 {[%clk 0:00:08]} 37... d2 {[%clk 0:00:40.1]}
38. Kf2 {[%clk 0:00:03.4]} 38... e1=Q+ {[%clk 0:00:36.9]} 39. Rxe1 {[%clk
0:00:03.2]} 39... dxe1=Q+ {[%clk 0:00:37.8]} 40. Kxe1 {[%clk 0:00:03.6]} 40...
Re6 {[%clk 0:00:38.5]} 0-1

[Event "Late-Titled-Tuesday-Blitz-April-02-2024"]
[Site "Chess.com"]
[Date "2024.04.02"]
[Round "2"]
[White "czasnaszachy"]
[Black "protectiago"]
[Result "1-0"]
[WhiteElo "2425"]
[BlackElo "2060"]
[TimeControl "180+1"]
[EndTime "14:17:00 PDT"]
[Termination "czasnaszachy won by resignation"]

1. e4 {[%clk 0:03:00.9]} 1... e5 {[%clk 0:02:58]} 2. Nf3 {[%clk 0:03:00.4]} 2...
Nc6 {[%clk 0:02:58.1]} 3. Bb5 {[%clk 0:02:59.9]} 3... a6 {[%clk 0:02:57.9]} 4.
Ba4 {[%clk 0:02:59.3]} 4... Nf6 {[%clk 0:02:58.2]} 5. O-O {[%clk 0:02:58.8]}
5... Nxe4 {[%clk 0:02:58.1]} 6. d4 {[%clk 0:02:56.7]} 6... b5 {[%clk 0:02:58]}
7. Bb3 {[%clk 0:02:55.6]} 7... d5 {[%clk 0:02:58.7]} 8. dxe5 {[%clk 0:02:55.1]}
8... Be6 {[%clk 0:02:59.3]} 9. Qe2 {[%clk 0:02:49.8]} 9... Bc5 {[%clk
0:02:56.9]} 10. Nbd2 {[%clk 0:02:49.3]} 10... Bf5 {[%clk 0:02:52.3]} 11. Nxe4
{[%clk 0:02:34.2]} 11... dxe4 {[%clk 0:02:51.8]} 12. Ng5 {[%clk 0:02:27.8]}
12... O-O {[%clk 0:02:03.3]} 13. e6 {[%clk 0:01:59.3]} 13... Nd4 {[%clk
0:01:47.9]} 14. exf7+ {[%clk 0:01:51]} 14... Kh8 {[%clk 0:01:47.1]} 15. Qh5
{[%clk 0:01:28]} 15... Bg6 {[%clk 0:01:18.4]} 16. Qg4 {[%clk 0:00:45.6]} 16...
Bf5 {[%clk 0:00:53.6]} 17. Qh5 {[%clk 0:00:27.5]} 17... Bg6 {[%clk 0:00:52.8]}
18. Qd1 {[%clk 0:00:27.4]} 18... Nxb3 {[%clk 0:00:45.6]} 19. axb3 {[%clk
0:00:28.3]} 19... Bxf7 {[%clk 0:00:34.5]} 20. Nxf7+ {[%clk 0:00:12.6]} 20...
Rxf7 {[%clk 0:00:31.7]} 21. Qh5 {[%clk 0:00:06.3]} 21... Qe7 {[%clk 0:00:11.4]}
22. Bg5 {[%clk 0:00:05.8]} 22... Qe5 {[%clk 0:00:09.9]} 23. Qxf7 {[%clk
0:00:04.9]} 23... Qxg5 {[%clk 0:00:09.8]} 24. Qxc7 {[%clk 0:00:04.8]} 24... Rf8
{[%clk 0:00:08.6]} 25. Qg3 {[%clk 0:00:04.1]} 25... Qf6 {[%clk 0:00:08.2]} 26.
Rxa6 {[%clk 0:00:03.6]} 26... e3 {[%clk 0:00:08.3]} 27. Rxf6 {[%clk 0:00:03.1]}
27... exf2+ {[%clk 0:00:07.6]} 28. R6xf2 {[%clk 0:00:04]} 28... Rd8 {[%clk
0:00:06.4]} 29. Kh1 {[%clk 0:00:03.8]} 29... Bxf2 {[%clk 0:00:05.1]} 30. Qxf2
{[%clk 0:00:04.7]} 30... h6 {[%clk 0:00:04.6]} 31. Qf8+ {[%clk 0:00:04.8]} 1-0

[Event "Late-Titled-Tuesday-Blitz-April-02-2024"]
[Site "Chess.com"]
[Date "2024.04.02"]
[Round "2"]
[White "Oleksandr_Bortnyk"]
[Black "Alexei_Gubajdullin"]
[Result "1-0"]
[WhiteElo "3041"]
[BlackElo "2616"]
[TimeControl "180+1"]
[EndTime "14:17:01 PDT"]
[Termination "Oleksandr_Bortnyk won by checkmate"]

1. e4 {[%clk 0:02:55.7]} 1... g6 {[%clk 0:02:55.1]} 2. d4 {[%clk 0:02:50.4]}
2... Bg7 {[%clk 0:02:52.7]} 3. Nc3 {[%clk 0:02:34.5]} 3... d6 {[%clk 0:02:53.6]}
4. Bg5 {[%clk 0:02:34]} 4... c6 {[%clk 0:02:49]} 5. Qd2 {[%clk 0:02:32.9]} 5...
Nd7 {[%clk 0:02:47.5]} 6. f4 {[%clk 0:02:32.2]} 6... Qc7 {[%clk 0:02:46.2]} 7.
e5 {[%clk 0:02:30.5]} 7... d5 {[%clk 0:02:45.4]} 8. Nf3 {[%clk 0:02:29.1]} 8...
Nb6 {[%clk 0:02:42.8]} 9. Bd3 {[%clk 0:02:28.7]} 9... Nc4 {[%clk 0:02:41.2]} 10.
Bxc4 {[%clk 0:02:26.6]} 10... dxc4 {[%clk 0:02:38.5]} 11. d5 {[%clk 0:02:27.3]}
11... h6 {[%clk 0:02:27.2]} 12. Bh4 {[%clk 0:02:10.9]} 12... cxd5 {[%clk
0:02:11.3]} 13. Nxd5 {[%clk 0:02:11.8]} 13... Qc6 {[%clk 0:02:11.1]} 14. O-O-O
{[%clk 0:01:59.6]} 14... Be6 {[%clk 0:02:10.2]} 15. Nb4 {[%clk 0:01:15.9]} 15...
Qa4 {[%clk 0:01:49.8]} 16. Nd5 {[%clk 0:00:53.8]} 16... Qc6 {[%clk 0:01:44.5]}
17. Qa5 {[%clk 0:00:51.3]} 17... b6 {[%clk 0:01:27.7]} 18. Nb4 {[%clk
0:00:42.6]} 18... Qb7 {[%clk 0:01:03.2]} 19. Qb5+ {[%clk 0:00:30.4]} 19... Bd7
{[%clk 0:01:02.8]} 20. Qxc4 {[%clk 0:00:30.3]} 20... Rc8 {[%clk 0:01:02.6]} 21.
Qb3 {[%clk 0:00:23.6]} 21... g5 {[%clk 0:00:53.8]} 22. fxg5 {[%clk 0:00:23.2]}
22... Bf5 {[%clk 0:00:53.4]} 23. Nd4 {[%clk 0:00:21]} 23... Bg6 {[%clk
0:00:51.6]} 24. Qa4+ {[%clk 0:00:20]} 24... Kf8 {[%clk 0:00:51.5]} 25. Rhf1
{[%clk 0:00:19.9]} 25... e6 {[%clk 0:00:08.9]} 26. Nxe6+ {[%clk 0:00:19]} 26...
Ke7 {[%clk 0:00:09.2]} 27. Nxg7 {[%clk 0:00:14.2]} 27... h5 {[%clk 0:00:05.6]}
28. Nd5+ {[%clk 0:00:12.7]} 28... Qxd5 {[%clk 0:00:02]} 29. Rxd5 {[%clk
0:00:13.6]} 29... Rxc2+ {[%clk 0:00:02.5]} 30. Qxc2 {[%clk 0:00:12]} 30... Bxc2
{[%clk 0:00:03.4]} 31. Kxc2 {[%clk 0:00:12.9]} 31... Kf8 {[%clk 0:00:01.8]} 32.
Nf5 {[%clk 0:00:11.6]} 32... Ke8 {[%clk 0:00:01.1]} 33. g6 {[%clk 0:00:10.7]}
33... fxg6 {[%clk 0:00:01.1]} 34. Ng7# {[%clk 0:00:11]} 1-0

[Event "Late-Titled-Tuesday-Blitz-April-02-2024"]
[Site "Chess.com"]
[Date "2024.04.02"]
[Round "2"]
[White "RodokininEV"]
[Black "Walter_White_Poland"]
[Result "1-0"]
[WhiteElo "2700"]
[BlackElo "2446"]
[TimeControl "180+1"]
[EndTime "14:17:05 PDT"]
[Termination "RodokininEV won by resignation"]

1. e4 {[%clk 0:03:00.9]} 1... g6 {[%clk 0:02:59.5]} 2. d4 {[%clk 0:03:00.9]}
2... Bg7 {[%clk 0:02:59.4]} 3. c4 {[%clk 0:03:01.2]} 3... d6 {[%clk 0:02:59.1]}
4. Nc3 {[%clk 0:03:01.2]} 4... Nd7 {[%clk 0:02:58.9]} 5. Nf3 {[%clk 0:03:00.6]}
5... e6 {[%clk 0:02:57.6]} 6. Be2 {[%clk 0:02:59.9]} 6... b6 {[%clk 0:02:57.4]}
7. O-O {[%clk 0:02:59.7]} 7... Bb7 {[%clk 0:02:57.3]} 8. Be3 {[%clk 0:02:57.4]}
8... Ne7 {[%clk 0:02:56.3]} 9. Qd2 {[%clk 0:02:56.5]} 9... h6 {[%clk 0:02:55.4]}
10. Rac1 {[%clk 0:02:52.4]} 10... g5 {[%clk 0:02:53.2]} 11. Rfd1 {[%clk
0:02:49.2]} 11... Ng6 {[%clk 0:02:51.4]} 12. b3 {[%clk 0:02:03]} 12... Qe7
{[%clk 0:02:48]} 13. Nb5 {[%clk 0:02:00.9]} 13... Nf6 {[%clk 0:02:44.3]} 14. e5
{[%clk 0:01:58.1]} 14... Ng4 {[%clk 0:02:35.2]} 15. exd6 {[%clk 0:01:57.1]}
15... cxd6 {[%clk 0:02:35]} 16. d5 {[%clk 0:01:52.2]} 16... Nxe3 {[%clk
0:02:18.4]} 17. fxe3 {[%clk 0:01:52.6]} 17... e5 {[%clk 0:02:16.8]} 18. b4
{[%clk 0:01:44.5]} 18... O-O {[%clk 0:02:15.6]} 19. c5 {[%clk 0:01:40.7]} 19...
bxc5 {[%clk 0:02:05.6]} 20. bxc5 {[%clk 0:01:41.6]} 20... dxc5 {[%clk
0:02:04.9]} 21. d6 {[%clk 0:01:40.8]} 21... Qd8 {[%clk 0:01:47.1]} 22. Nc7
{[%clk 0:01:29.5]} 22... e4 {[%clk 0:01:42.8]} 23. Ne1 {[%clk 0:01:23.7]} 23...
Be5 {[%clk 0:01:28.4]} 24. Nxa8 {[%clk 0:00:51.3]} 24... Bxa8 {[%clk 0:01:28]}
25. Rxc5 {[%clk 0:00:52.2]} 25... Qb6 {[%clk 0:01:17.6]} 26. Rxe5 {[%clk
0:00:50.8]} 26... Nxe5 {[%clk 0:01:16.7]} 27. Qd4 {[%clk 0:00:45.9]} 27... Qxd4
{[%clk 0:01:14.7]} 28. Rxd4 {[%clk 0:00:46.8]} 28... Nd7 {[%clk 0:01:06.4]} 29.
Ra4 {[%clk 0:00:45.2]} 29... Rd8 {[%clk 0:01:00.6]} 30. Rxa7 {[%clk 0:00:44.9]}
30... Bd5 {[%clk 0:01:00.8]} 31. Nc2 {[%clk 0:00:41.7]} 31... Nf6 {[%clk
0:00:53.6]} 32. Nd4 {[%clk 0:00:39.4]} 32... Rxd6 {[%clk 0:00:52.2]} 33. a4
{[%clk 0:00:39.7]} 33... Rb6 {[%clk 0:00:46.7]} 34. a5 {[%clk 0:00:38.5]} 34...
Rb2 {[%clk 0:00:39.6]} 35. a6 {[%clk 0:00:37.7]} 35... Ra2 {[%clk 0:00:38.3]}
36. h3 {[%clk 0:00:33.9]} 36... Kg7 {[%clk 0:00:32.8]} 37. Rc7 {[%clk
0:00:33.8]} 37... Ne8 {[%clk 0:00:29]} 38. Rd7 {[%clk 0:00:31.5]} 38... Be6
{[%clk 0:00:18.1]} 39. Re7 {[%clk 0:00:26.2]} 39... Rxe2 {[%clk 0:00:10.6]} 40.
Nxe2 {[%clk 0:00:21.1]} 40... Nd6 {[%clk 0:00:10.2]} 41. a7 {[%clk 0:00:18.4]}
41... Bd5 {[%clk 0:00:09.2]} 42. Rd7 {[%clk 0:00:18.9]} 1-0